bitfinex/quotes_BTCUSD_20251010
["timestamp","ask_amount","ask_price","bid_price","bid_amount"]
[1760087971162,7.42301607,121730.0,121720.0,1e-08]
[1760087971563,7.44521308,121730.0,121720.0,1e-08]
[1760087972159,7.34521982,121730.0,121720.0,1e-08]
[1760087972363,7.44521981,121730.0,121720.0,1e-08]
[1760087972944,7.25965982,121730.0,121720.0,1e-08]
[1760087973171,7.44521981,121730.0,121720.0,1e-08]
[1760087973566,7.34521982,121730.0,121720.0,1e-08]
[1760087973772,7.44521981,121730.0,121720.0,1e-08]
[1760087974142,6.44301981,121730.0,121720.0,1e-08]
[1760087974347,7.44517981,121730.0,121720.0,1e-08]
[1760087974551,6.44301981,121730.0,121720.0,1e-08]
[1760087974756,7.44517981,121730.0,121720.0,1e-08]
[1760087976458,7.4747875,121730.0,121720.0,1e-08]
[1760087976874,7.1867974,121730.0,121720.0,1e-08]
[1760087978229,7.08679741,121730.0,121720.0,1e-08]
[1760087978439,7.17144225,121730.0,121720.0,1e-08]
[1760087978666,7.18683122,121730.0,121720.0,1e-08]
[1760087979086,7.17083122,121730.0,121720.0,1e-08]
[1760087981720,7.1486549,121730.0,121720.0,1e-08]
[1760087981938,7.20073948,121730.0,121720.0,1e-08]
[1760087982152,7.1486549,121730.0,121720.0,1e-08]
[1760087982357,1.13450394,121690.0,121680.0,0.01426]
[1760087982568,3.7778176,121690.0,121680.0,0.0325]
[1760087983499,3.7778176,121690.0,121680.0,0.0325827]
[1760087983930,2.3878486,121690.0,121680.0,0.0325827]
[1760087984133,2.4422116,121690.0,121680.0,0.0325827]
[1760087984334,2.2000196,121690.0,121680.0,0.0325827]
[1760087984538,2.4320196,121690.0,121680.0,0.0004827]
[1760087984738,2.49468441,121690.0,121680.0,0.0004827]
[1760087985232,2.49471198,121690.0,121680.0,0.0004827]
[1760087985699,2.26271198,121690.0,121680.0,0.0004827]
[1760087985837,2.51150533,121690.0,121680.0,0.0004827]
[1760087987823,2.27950533,121690.0,121680.0,0.0004827]
[1760087988149,2.51150533,121690.0,121680.0,0.00253356]
[1760087989327,2.27950533,121690.0,121680.0,0.00253356]
[1760087989486,2.51150533,121690.0,121680.0,0.02072356]
[1760087989898,2.50350533,121690.0,121680.0,0.02072356]
[1760087990869,2.5035187,121690.0,121680.0,0.02072356]
[1760087991074,2.1859587,121690.0,121680.0,0.02072356]
[1760087991266,2.8457987,121690.0,121680.0,0.02072356]
[1760087991694,2.8457987,121690.0,121680.0,0.0206404]
[1760087991930,2.8457987,121690.0,121680.0,0.0623104]
[1760087991931,2.8457587,121690.0,121680.0,0.0623104]
[1760087992397,2.2307058,121690.0,121680.0,0.0623104]
[1760087992590,1.4706358,121690.0,121680.0,0.0623104]
[1760087992796,1.7881958,121690.0,121680.0,0.0623104]
[1760087993441,1.7026358,121690.0,121680.0,0.0623104]
[1760087993611,1.7881958,121690.0,121680.0,0.0623104]
[1760087995838,1.7881558,121690.0,121680.0,0.0623104]
[1760088000242,1.7801558,121690.0,121680.0,0.0623104]
[1760088000414,1.540488,121690.0,121680.0,0.0623104]
[1760088000651,1.78016237,121690.0,121680.0,0.0623104]
[1760088001305,1.54820237,121690.0,121680.0,0.0623104]
[1760088001504,1.78016237,121690.0,121680.0,0.0623104]
[1760088002381,1.60028695,121690.0,121680.0,0.0623104]
[1760088002545,1.78016237,121690.0,121680.0,0.0623104]
[1760088003886,1.54820237,121690.0,121680.0,0.0623104]
[1760088004088,1.78016237,121690.0,121680.0,0.0623104]
[1760088005195,1.78016237,121690.0,121680.0,0.0341004]
[1760088005414,1.78812237,121690.0,121680.0,0.0341004]
[1760088005807,1.55620237,121690.0,121680.0,0.0615304]
[1760088006213,1.78812237,121690.0,121680.0,0.0615304]
[1760088007391,1.55620237,121690.0,121680.0,0.0615304]
[1760088007602,1.78812237,121690.0,121680.0,0.0615304]
[1760088009033,1.78812237,121690.0,121680.0,0.0341004]
[1760088009235,1.7881224,121690.0,121680.0,0.0341004]
[1760088009433,1.7881224,121690.0,121680.0,0.0615304]
[1760088011628,1.7881224,121690.0,121680.0,0.0341004]
[1760088012119,1.7881224,121690.0,121680.0,0.0615304]
[1760088012947,1.7881224,121690.0,121680.0,0.0341004]
[1760088012948,1.7881225,121690.0,121680.0,0.0341004]
[1760088013360,1.5562025,121690.0,121680.0,0.0341004]
[1760088013568,1.78812259,121690.0,121680.0,0.0615304]
[1760088016736,1.55620259,121690.0,121680.0,0.0615304]
[1760088016940,1.78808259,121690.0,121680.0,0.0341004]
[1760088017343,1.55620259,121690.0,121680.0,0.0341004]
[1760088017491,1.78808259,121690.0,121680.0,0.0159104]
[1760088018096,1.78808259,121690.0,121680.0,0.0334904]
[1760088019615,1.78008259,121690.0,121680.0,0.0334904]
[1760088019969,1.84008259,121690.0,121680.0,0.0334904]
[1760088021194,1.84008274,121690.0,121680.0,0.0334904]
[1760088021433,1.84808274,121690.0,121680.0,0.0334904]
[1760088023134,1.84808289,121690.0,121680.0,0.0334904]
[1760088024146,1.84808289,121690.0,121680.0,0.0609204]
[1760088024993,1.61620289,121690.0,121680.0,0.0609204]
[1760088025177,2.19036289,121690.0,121680.0,0.0609204]
[1760088025598,1.95848297,121690.0,121680.0,0.0609204]
[1760088025787,2.19036297,121690.0,121680.0,0.0609204]
[1760088027600,2.18236297,121690.0,121680.0,0.0609204]
[1760088028013,1.52264297,121690.0,121680.0,0.0609204]
[1760088028218,2.09680293,121690.0,121680.0,0.0609204]
[1760088028432,2.18236293,121690.0,121680.0,0.0609204]
[1760088028850,1.86492293,121690.0,121680.0,0.0609204]
[1760088029052,1.95048293,121690.0,121680.0,0.0609204]
[1760088029259,1.51492845,121690.0,121680.0,0.0609204]
[1760088029466,2.17464845,121690.0,121680.0,0.0609204]
[1760088030793,1.95076845,121690.0,121680.0,0.0609204]
[1760088031001,2.15976345,121690.0,121680.0,0.0609204]
[1760088031211,1.81748345,121690.0,121680.0,0.0609204]
[1760088031830,1.50004345,121690.0,121680.0,0.0609204]
[1760088032062,1.81748345,121690.0,121680.0,0.0609204]
[1760088033648,1.50004345,121690.0,121680.0,0.0609204]
[1760088033851,1.81748345,121690.0,121680.0,0.0609204]
[1760088039864,1.8006901,121690.0,121680.0,0.0609204]
[1760088041497,1.58563806,121690.0,121680.0,0.0609204]
[1760088041670,1.81751806,121690.0,121680.0,0.0334904]
[1760088041896,6.49853122,121690.0,121680.0,0.0024504]
[1760088042101,6.73041122,121690.0,121680.0,0.0024504]
[1760088042317,1.73041122,121690.0,121680.0,0.0024504]
[1760088042767,6.73041122,121690.0,121680.0,0.0024504]
[1760088043211,6.61283822,121690.0,121680.0,0.0196304]
[1760088043395,6.53430822,121690.0,121680.0,0.0196304]
[1760088043532,1.73141122,121690.0,121680.0,0.0196304]
[1760088043941,6.45139922,121690.0,121680.0,0.0333004]
[1760088044144,6.05833722,121690.0,121680.0,0.0593204]
[1760088044349,5.46749126,121690.0,121680.0,0.0593204]
[1760088044560,4.92601826,121690.0,121680.0,0.0593204]
[1760088044763,5.16040426,121690.0,121680.0,0.0593204]
[1760088044968,4.45079226,121690.0,121680.0,0.0593204]
[1760088045184,2.05686326,121690.0,121680.0,0.0593204]
[1760088045399,5.16662026,121690.0,121680.0,0.0593204]
[1760088045602,5.41183026,121690.0,121680.0,0.0593204]
[1760088045803,2.05686326,121690.0,121680.0,0.0593204]
[1760088046023,5.38761126,121690.0,121680.0,0.0593204]
[1760088046231,5.36136526,121690.0,121680.0,0.0593204]
[1760088046444,2.64309736,121690.0,121680.0,0.0593204]
[1760088046649,1.79483136,121690.0,121680.0,0.0593204]
[1760088046845,2.66679736,121690.0,121680.0,0.0593204]
[1760088047058,2.97590436,121690.0,121680.0,0.0593204]
[1760088047266,2.01899738,121690.0,121680.0,0.0593204]
[1760088047475,3.19202238,121690.0,121680.0,0.0593204]
[1760088047684,2.01899738,121690.0,121680.0,0.0593204]
[1760088047898,3.44826138,121690.0,121680.0,0.0593204]
[1760088048097,3.46613438,121690.0,121680.0,0.0593204]
[1760088048318,3.36195138,121690.0,121680.0,0.0593204]
[1760088048593,3.31726338,121690.0,121680.0,0.0593204]
[1760088048798,3.32025738,121690.0,121680.0,0.0593204]
[1760088049014,3.29760938,121690.0,121680.0,0.0593204]
[1760088049225,2.01899738,121690.0,121680.0,0.0593204]
[1760088049429,3.40868438,121690.0,121680.0,0.0593204]
[1760088049641,3.51540938,121690.0,121680.0,0.0593204]
[1760088049899,2.01903738,121690.0,121680.0,0.0593204]
[1760088050111,3.53986838,121690.0,121680.0,0.0593204]
[1760088050321,3.17499038,121690.0,121680.0,0.0593204]
[1760088050525,3.06289238,121690.0,121680.0,0.0593204]
[1760088051984,2.83101238,121690.0,121680.0,0.0593204]
[1760088052186,3.07779922,121690.0,121680.0,0.0593204]
[1760088055543,3.07779922,121690.0,121680.0,0.0024504]
[1760088055544,6.839928,121690.0,121680.0,0.0024504]
[1760088055758,7.071808,121690.0,121680.0,0.0024504]
[1760088055983,6.839928,121690.0,121680.0,0.0198604]
[1760088056198,7.071808,121690.0,121680.0,0.0198604]
[1760088056692,7.071808,121690.0,121680.0,0.0024504]
[1760088056902,2.071808,121690.0,121680.0,0.0024504]
[1760088057364,7.071808,121690.0,121680.0,0.0024504]
[1760088057998,6.839928,121690.0,121680.0,0.0024504]
[1760088058210,7.318268,121690.0,121680.0,0.0024504]
[1760088058413,2.318268,121690.0,121680.0,0.0024504]
[1760088058589,7.318268,121690.0,121680.0,0.0024504]
[1760088058888,2.318268,121690.0,121680.0,0.0024504]
[1760088059132,7.318268,121690.0,121680.0,0.0024504]
[1760088059945,2.318268,121690.0,121680.0,0.0024504]
[1760088060152,7.318268,121690.0,121680.0,0.0024504]
[1760088060750,2.318268,121690.0,121680.0,0.0024504]
[1760088061268,7.318268,121690.0,121680.0,0.0024504]
[1760088061484,2.318268,121690.0,121680.0,0.0024504]
[1760088061661,7.318268,121690.0,121680.0,0.0024504]
[1760088062216,2.318268,121690.0,121680.0,0.0024504]
[1760088062420,7.318268,121690.0,121680.0,0.0024504]
[1760088062622,2.318268,121690.0,121680.0,0.0024504]
[1760088062823,7.318268,121690.0,121680.0,0.0024504]
[1760088063032,2.318268,121690.0,121680.0,0.0024504]
[1760088063440,7.318268,121690.0,121680.0,0.0024504]
[1760088064347,2.318268,121690.0,121680.0,0.0024504]
[1760088064594,7.318268,121690.0,121680.0,0.0024504]
[1760088066000,2.318268,121690.0,121680.0,0.0024504]
[1760088066482,6.415763,121690.0,121680.0,0.0194404]
[1760088066726,6.441719,121690.0,121680.0,0.0194404]
[1760088066945,6.642412,121690.0,121680.0,0.0024504]
[1760088067154,6.884706,121690.0,121680.0,0.0024504]
[1760088067355,2.29512693,121690.0,121680.0,0.0024504]
[1760088067555,7.05504093,121690.0,121680.0,0.0024504]
[1760088067755,7.07786778,121690.0,121680.0,0.0024504]
[1760088068124,7.25336193,121690.0,121680.0,0.0024504]
[1760088069946,2.31825817,121690.0,121680.0,0.0024504]
[1760088070149,6.47763744,121690.0,121680.0,0.0024504]
[1760088070352,2.31825844,121690.0,121680.0,0.0024504]
[1760088070569,7.11932444,121690.0,121680.0,0.0024504]
[1760088070909,2.31825844,121690.0,121680.0,0.0024504]
[1760088071089,6.89816644,121690.0,121680.0,0.0024504]
[1760088071326,6.87894644,121690.0,121680.0,0.0024504]
[1760088071547,7.06344644,121690.0,121680.0,0.0024504]
[1760088071751,2.31825844,121690.0,121680.0,0.0024504]
[1760088072173,6.43536544,121690.0,121680.0,0.0024504]
[1760088072386,2.31825844,121690.0,121680.0,0.0194404]
[1760088072627,6.91659044,121690.0,121680.0,0.0194404]
[1760088072835,2.31825844,121690.0,121680.0,0.0194404]
[1760088073491,1.65849844,121690.0,121680.0,0.0194404]
[1760088073699,5.86986744,121690.0,121680.0,0.0322104]
[1760088073903,5.88807644,121690.0,121680.0,0.0322104]
[1760088074114,2.37034302,121690.0,121680.0,0.0322104]
[1760088074323,6.15436744,121690.0,121680.0,0.0322104]
[1760088074737,6.15488044,121690.0,121680.0,0.0322104]
[1760088074924,6.09230944,121690.0,121680.0,0.0322104]
[1760088075221,2.31825844,121690.0,121680.0,0.0322104]
[1760088075440,6.05068344,121690.0,121680.0,0.0322104]
[1760088075642,2.31825844,121690.0,121680.0,0.0322104]
[1760088075844,6.06934344,121690.0,121680.0,0.0322104]
[1760088076077,5.82934344,121690.0,121680.0,0.0322104]
[1760088076324,5.95820844,121690.0,121680.0,0.0322104]
[1760088076540,5.94060344,121690.0,121680.0,0.0322104]
[1760088076752,4.72218744,121690.0,121680.0,0.0572804]
[1760088076955,4.66793644,121690.0,121680.0,0.0572804]
[1760088077165,2.31825844,121690.0,121680.0,0.0572804]
[1760088077377,5.07395344,121690.0,121680.0,0.0572804]
[1760088077584,5.08228944,121690.0,121680.0,0.0322104]
[1760088077791,2.31825844,121690.0,121680.0,0.0572804]
[1760088078003,5.08228944,121690.0,121680.0,0.0572804]
[1760088078211,5.10506544,121690.0,121680.0,0.0572804]
[1760088078413,2.31825844,121690.0,121680.0,0.0572804]
[1760088078629,5.10506544,121690.0,121680.0,0.0572804]
[1760088079045,5.10555544,121690.0,121680.0,0.0572804]
[1760088079267,5.12173044,121690.0,121680.0,0.0572804]
[1760088079688,5.12312744,121690.0,121680.0,0.0572804]
[1760088079895,2.31825906,121690.0,121680.0,0.0572804]
[1760088080158,5.36359206,121690.0,121680.0,0.0572804]
[1760088080341,5.36057006,121690.0,121680.0,0.0572804]
[1760088080594,2.31825906,121690.0,121680.0,0.0322104]
[1760088081018,5.36260506,121690.0,121680.0,0.0322104]
[1760088081484,5.37943806,121690.0,121680.0,0.0322104]
[1760088081668,2.31825906,121690.0,121680.0,0.0322104]
[1760088081903,5.35756006,121690.0,121680.0,0.0322104]
[1760088082290,5.38094206,121690.0,121680.0,0.0322104]
[1760088082540,5.35756006,121690.0,121680.0,0.0322104]
[1760088082755,5.34338106,121690.0,121680.0,0.0322104]
[1760088082957,2.31825906,121690.0,121680.0,0.0322104]
[1760088083391,5.35596506,121690.0,121680.0,0.0322104]
[1760088083805,2.31825906,121690.0,121680.0,0.0322104]
[1760088084034,5.37556606,121690.0,121680.0,0.0322104]
[1760088084466,2.31825906,121690.0,121680.0,0.0322104]
[1760088084935,5.36899906,121690.0,121680.0,0.0322104]
[1760088085179,2.31825906,121690.0,121680.0,0.0322104]
[1760088085444,5.37479606,121690.0,121680.0,0.0322104]
[1760088085704,5.35241506,121690.0,121680.0,0.0322104]
[1760088085903,2.31025906,121690.0,121680.0,0.0322104]
[1760088086116,4.66546406,121690.0,121680.0,0.0322104]
[1760088086340,5.28722506,121690.0,121680.0,0.0322104]
[1760088086521,5.34522306,121690.0,121680.0,0.0322104]
[1760088086778,2.31025906,121690.0,121680.0,0.0322104]
[1760088086984,5.33336706,121690.0,121680.0,0.0322104]
[1760088087161,5.35375906,121690.0,121680.0,0.0322104]
[1760088087373,5.35111206,121690.0,121680.0,0.0322104]
[1760088087580,5.35101206,121690.0,121680.0,0.0322104]
[1760088087859,2.31025906,121690.0,121680.0,0.0322104]
[1760088088320,5.12137306,121690.0,121680.0,0.0322104]
[1760088088508,5.68379206,121690.0,121680.0,0.0322104]
[1760088088768,5.71697906,121690.0,121680.0,0.0322104]
[1760088088993,5.51300506,121690.0,121680.0,0.0322104]
[1760088089217,5.28112506,121690.0,121680.0,0.0322104]
[1760088089437,5.53361106,121690.0,121680.0,0.0322104]
[1760088089657,5.51300506,121690.0,121680.0,0.0322104]
[1760088089861,5.53670106,121690.0,121680.0,0.0322104]
[1760088090040,2.31025906,121690.0,121680.0,0.0322104]
[1760088090249,2.91780806,121690.0,121680.0,0.0572804]
[1760088090459,2.66831806,121690.0,121680.0,0.0572804]
[1760088090666,2.04159006,121690.0,121680.0,0.0572804]
[1760088090887,2.79087806,121690.0,121680.0,0.0572804]
[1760088091091,3.00999306,121690.0,121680.0,0.0572804]
[1760088091297,3.02856506,121690.0,121680.0,0.0572804]
[1760088091499,3.01002406,121690.0,121680.0,0.0572804]
[1760088091832,2.31825906,121690.0,121680.0,0.0572804]
[1760088092011,3.01002406,121690.0,121680.0,0.0572804]
[1760088092220,2.30504606,121690.0,121680.0,0.0572804]
[1760088092428,2.78930806,121690.0,121680.0,0.0572804]
[1760088092638,2.77010206,121690.0,121680.0,0.0572804]
[1760088092849,2.31825906,121690.0,121680.0,0.0572804]
[1760088093064,2.74030706,121690.0,121680.0,0.0572804]
[1760088093273,2.31825906,121690.0,121680.0,0.0572804]
[1760088093489,0.74115038,121690.0,121680.0,0.23808249]
[1760088093712,0.39302,121690.0,121680.0,0.22164594]
[1760088093935,0.62502,121690.0,121680.0,0.24634847]
[1760088094601,0.30746,121690.0,121680.0,0.24634847]
[1760088095029,0.30646,121690.0,121680.0,0.32947053]
[1760088095236,0.29208,121690.0,121680.0,0.38024083]
[1760088096146,0.06,121690.0,121680.0,0.32947053]
[1760088096359,0.29208,121690.0,121680.0,0.32947053]
[1760088096821,0.29208,121690.0,121680.0,0.33047053]
[1760088098087,0.29208,121690.0,121680.0,0.34497632]
[1760088100746,0.29204,121690.0,121680.0,0.34497632]
[1760088101427,0.06,121690.0,121680.0,0.34497632]
[1760088101637,0.292,121690.0,121680.0,0.34497632]
[1760088102829,0.292,121690.0,121680.0,0.3948861]
[1760088103329,0.06,121690.0,121680.0,0.3948861]
[1760088103774,0.06,121690.0,121680.0,0.7348861]
[1760088104888,0.06,121690.0,121680.0,0.9669261]
[1760088105529,0.06,121690.0,121680.0,0.9679261]
[1760088106615,0.06,121690.0,121680.0,0.9669261]
[1760088107131,1e-08,121690.0,121680.0,0.79103799]
[1760088107346,1e-08,121690.0,121680.0,1.12307798]
[1760088107553,1e-08,121690.0,121680.0,0.89103798]
[1760088107763,0.06655503,121720.0,121710.0,0.16432503]
[1760088107963,0.06655503,121720.0,121710.0,0.30990475]
[1760088108174,0.06619503,121720.0,121710.0,0.33718225]
[1760088108604,0.06619503,121720.0,121710.0,0.36187536]
[1760088108811,0.21772,121730.0,121720.0,0.16431153]
[1760088109035,0.21772,121730.0,121720.0,0.22118153]
[1760088109670,0.08552,121730.0,121720.0,0.2717494]
[1760088109876,0.31752,121730.0,121720.0,0.2717494]
[1760088111233,0.08552,121730.0,121720.0,0.24587464]
[1760088111458,0.31752,121730.0,121720.0,0.24587464]
[1760088117986,0.31752,121730.0,121720.0,0.25952188]
[1760088118191,0.31752,121730.0,121720.0,0.24587464]
[1760088118831,0.31752,121730.0,121720.0,0.25963396]
[1760088119037,0.37752,121730.0,121720.0,0.31499584]
[1760088121850,0.37752,121730.0,121720.0,0.25963396]
[1760088123305,0.38520624,121730.0,121720.0,0.25963396]
[1760088124349,0.38520624,121730.0,121720.0,0.24587464]
[1760088125111,0.38520624,121730.0,121720.0,0.22118153]
[1760088129894,0.38521303,121730.0,121720.0,0.22118153]
[1760088130347,0.38521303,121730.0,121720.0,0.27649898]
[1760088132245,0.06769303,121730.0,121720.0,0.27649898]
[1760088132457,0.29957303,121730.0,121720.0,0.27649898]
[1760088132675,0.06769303,121730.0,121720.0,0.27649898]
[1760088132896,0.29953303,121730.0,121720.0,0.27649898]
[1760088133306,0.06769303,121730.0,121720.0,0.35962104]
[1760088135526,0.00769303,121730.0,121720.0,0.38431244]
[1760088135728,0.23961303,121730.0,121720.0,0.38431244]
[1760088135930,0.00769303,121730.0,121720.0,0.38431244]
[1760088136127,0.23961303,121730.0,121720.0,0.38431244]
[1760088136514,0.00769303,121730.0,121720.0,0.38431244]
[1760088136722,0.23961303,121730.0,121720.0,0.38431244]
[1760088137618,0.00769303,121730.0,121720.0,0.38431244]
[1760088137803,0.00137042,121740.0,121730.0,0.16429803]
[1760088138031,0.01771484,121740.0,121730.0,0.34087114]
[1760088138244,0.01771484,121740.0,121730.0,0.35814114]
[1760088138455,0.00907484,121740.0,121730.0,0.35814114]
[1760088138672,0.09353042,121740.0,121730.0,0.35814114]
[1760088138888,0.00137042,121740.0,121730.0,0.35814114]
[1760088139317,0.00137042,121740.0,121730.0,0.38283088]
[1760088162352,0.00137042,121740.0,121730.0,0.61463088]
[1760088162612,0.00137042,121740.0,121730.0,0.95463088]
[1760088164766,0.00137042,121740.0,121730.0,0.72283088]
[1760088165000,0.00137042,121740.0,121730.0,0.95463088]
[1760088166365,0.00137042,121740.0,121730.0,0.72283088]
[1760088166628,0.00137042,121740.0,121730.0,0.95463088]
[1760088166838,0.15495503,121770.0,121760.0,0.16425755]
[1760088167068,0.1551059,121770.0,121760.0,0.26823616]
[1760088167288,0.1551059,121770.0,121760.0,0.25181041]
[1760088167972,0.00015087,121770.0,121760.0,0.34763762]
[1760088168358,0.00115087,121770.0,121760.0,0.34763762]
[1760088169000,0.00015087,121770.0,121760.0,0.34763762]
[1760088172503,0.00168771,121770.0,121760.0,0.34763762]
[1760088172725,0.00168771,121770.0,121760.0,0.31478476]
[1760088174080,0.02660957,121770.0,121760.0,0.31478476]
[1760088175692,0.31724,121780.0,121770.0,0.16424406]
[1760088175887,0.3177428,121780.0,121770.0,0.23381846]
[1760088176111,0.3177428,121780.0,121770.0,0.26810038]
[1760088178241,0.3177428,121780.0,121770.0,0.21739406]
[1760088181153,0.3177028,121780.0,121770.0,0.21739406]
[1760088181397,0.31821498,121780.0,121770.0,0.21739406]
[1760088192580,0.48244555,121780.0,121770.0,0.21739406]
[1760088193610,0.08649498,121780.0,121770.0,0.21739406]
[1760088193815,0.31821498,121780.0,121770.0,0.26765585]
[1760088194227,0.31821498,121780.0,121770.0,0.21739406]
[1760088194883,0.00101498,121780.0,121770.0,0.21739406]
[1760088195105,0.31821498,121780.0,121770.0,0.21739406]
[1760088196350,0.00101498,121780.0,121770.0,0.21739406]
[1760088196555,0.19660912,121790.0,121780.0,0.16423057]
[1760088196765,0.42832912,121790.0,121780.0,0.23544471]
[1760088196994,0.51380912,121790.0,121780.0,0.23544471]
[1760088197231,0.51380912,121790.0,121780.0,0.22152057]
[1760088198518,0.51480912,121790.0,121780.0,0.22152057]
[1760088202192,0.51532123,121790.0,121780.0,0.22152057]
[1760088202673,0.51532147,121790.0,121780.0,0.22152057]
[1760088206043,0.28360147,121790.0,121780.0,0.05729]
[1760088206249,0.51532147,121790.0,121780.0,0.22152057]
[1760088210156,0.51528147,121790.0,121780.0,0.22152057]
[1760088211456,0.51528147,121790.0,121780.0,0.05729]
[1760088212653,0.28360147,121790.0,121780.0,0.22152057]
[1760088212872,0.51528147,121790.0,121780.0,0.22152057]
[1760088213123,0.51528147,121790.0,121780.0,0.05729]
[1760088213329,0.28360147,121790.0,121780.0,0.05729]
[1760088213526,0.51528147,121790.0,121780.0,0.05729]
[1760088217236,0.51528198,121790.0,121780.0,0.05729]
[1760088218837,0.28360198,121790.0,121780.0,0.05729]
[1760088219137,0.46423057,121780.0,121770.0,0.01274]
[1760088219597,0.47193649,121780.0,121770.0,0.03013]
[1760088220049,0.47193649,121780.0,121770.0,0.05472]
[1760088220286,0.46423057,121780.0,121770.0,0.05472]
[1760088223177,0.16424406,121770.0,121760.0,0.03911992]
[1760088223393,0.39592406,121770.0,121760.0,0.03911992]
[1760088223608,0.39592406,121770.0,121760.0,0.05650992]
[1760088224075,0.45592406,121770.0,121760.0,0.05650992]
[1760088226501,0.45592406,121770.0,121760.0,0.22076747]
[1760088228031,0.22424406,121770.0,121760.0,0.22076747]
[1760088228239,0.54140406,121770.0,121760.0,0.22076747]
[1760088228448,0.22424406,121770.0,121760.0,0.22076747]
[1760088228667,0.54140406,121770.0,121760.0,0.22076747]
[1760088229337,0.22424406,121770.0,121760.0,0.22076747]
[1760088229556,0.54140406,121770.0,121760.0,0.22076747]
[1760088231416,0.54140406,121770.0,121760.0,0.05650992]
[1760088231621,0.14548,121770.0,121760.0,0.23719322]
[1760088231766,0.37748,121770.0,121760.0,0.22076747]
[1760088233074,0.29216,121770.0,121760.0,0.22076747]
[1760088233906,0.1059025,121770.0,121760.0,0.22076747]
[1760088234828,0.57439952,121780.0,121770.0,0.16424406]
[1760088235095,0.80651952,121780.0,121770.0,0.21844406]
[1760088235315,0.50651952,121780.0,121770.0,0.21844406]
[1760088237211,0.08548,121780.0,121770.0,0.25816721]
[1760088237419,0.3176,121780.0,121770.0,0.25816721]
[1760088237568,0.08548,121780.0,121770.0,0.28285169]
[1760088237779,0.3176,121780.0,121770.0,0.28285169]
[1760088238489,0.3176,121780.0,121770.0,0.24312854]
[1760088240082,0.08548,121780.0,121770.0,0.24312854]
[1760088240317,0.3176,121780.0,121770.0,0.24312854]
[1760088240603,0.46472948,121790.0,121780.0,0.16423057]
[1760088240845,0.78228948,121790.0,121780.0,0.19359057]
[1760088241112,0.78228948,121790.0,121780.0,0.21843057]
[1760088242080,0.78328948,121790.0,121780.0,0.21843057]
[1760088242759,0.46572948,121790.0,121780.0,0.21843057]
[1760088242992,0.78328948,121790.0,121780.0,0.21843057]
[1760088244390,0.46572948,121790.0,121780.0,0.21843057]
[1760088244600,0.78328948,121790.0,121780.0,0.21843057]
[1760088245020,0.78328948,121790.0,121780.0,0.0542]
[1760088245231,0.46572948,121790.0,121780.0,0.21843057]
[1760088245434,0.78328948,121790.0,121780.0,0.0542]
[1760088245864,0.78328948,121790.0,121780.0,0.21843057]
[1760088246086,0.78324948,121790.0,121780.0,0.21843057]
[1760088246328,0.78324948,121790.0,121780.0,0.0542]
[1760088246541,0.78324948,121790.0,121780.0,0.21843057]
[1760088247630,0.78324948,121790.0,121780.0,0.0542]
[1760088247842,0.55120948,121790.0,121780.0,0.02936]
[1760088248120,0.7909482,121790.0,121780.0,0.02936]
[1760088248810,1.0909482,121790.0,121780.0,0.02936]
[1760088249704,1.0909482,121790.0,121780.0,0.05546]
[1760088251303,1.0909482,121790.0,121780.0,0.02936]
[1760088254557,1.0909482,121790.0,121780.0,0.05546]
[1760088255039,0.79043609,121790.0,121780.0,0.05546]
[1760088256354,0.79035609,121790.0,121780.0,0.02936]
[1760088257853,0.55839609,121790.0,121780.0,0.02936]
[1760088258065,0.79035609,121790.0,121780.0,0.02936]
[1760088259726,0.87351815,121790.0,121780.0,0.02936]
[1760088260605,1.83853115,121790.0,121780.0,0.02936]
[1760088261021,0.16423057,121780.0,121760.0,0.01452992]
[1760088261259,0.39624406,121770.0,121760.0,0.01452992]
[1760088261486,0.39624406,121770.0,121760.0,0.03116992]
[1760088262166,0.77940612,121770.0,121760.0,0.03116992]
[1760088263067,0.54736612,121770.0,121760.0,0.03116992]
[1760088263294,0.86488612,121770.0,121760.0,0.05726992]
[1760088264020,0.86488612,121770.0,121760.0,0.03116992]
[1760088266235,0.92678309,121770.0,121760.0,0.03116992]
[1760088268712,0.69474309,121770.0,121760.0,0.03116992]
[1760088268926,0.92678309,121770.0,121760.0,0.03116992]
[1760088269146,0.69474309,121770.0,121760.0,0.00136992]
[1760088269366,1.03987309,121770.0,121760.0,0.00136992]
[1760088269801,0.72235309,121770.0,121760.0,0.00136992]
[1760088270192,1.72960704,121770.0,121760.0,0.00136992]
[1760088270429,1.72960567,121770.0,121760.0,0.00136992]
[1760088270848,1.75429766,121770.0,121760.0,0.00136992]
[1760088271061,1.09473766,121770.0,121760.0,0.00136992]
[1760088271533,1.75445766,121770.0,121760.0,0.00136992]
[1760088272174,1.66901766,121770.0,121760.0,0.03126992]
[1760088272400,1.72211309,121770.0,121760.0,0.05736992]
[1760088272602,1.29459309,121770.0,121760.0,0.05736992]
[1760088272803,1.38107309,121770.0,121760.0,0.05736992]
[1760088273010,1.38107309,121770.0,121760.0,0.03126992]
[1760088273429,1.06335309,121770.0,121760.0,0.03126992]
[1760088273643,0.95262103,121770.0,121760.0,0.22232747]
[1760088273861,1.18490103,121770.0,121760.0,0.05806992]
[1760088274283,1.18490103,121770.0,121760.0,0.22232747]
[1760088274480,1.18490103,121770.0,121760.0,0.05806992]
[1760088274689,0.86714103,121770.0,121760.0,0.22232747]
[1760088275146,0.86714103,121770.0,121760.0,0.05806992]
[1760088275360,0.48837697,121770.0,121760.0,0.22232747]
[1760088275567,0.38061697,121770.0,121760.0,0.22232747]
[1760088275784,0.001,121770.0,121760.0,0.22232747]
[1760088275996,0.08648,121770.0,121760.0,0.26231309]
[1760088276199,0.08648,121770.0,121760.0,0.22232747]
[1760088276200,0.001,121770.0,121760.0,0.22232747]
[1760088276412,0.31876,121770.0,121760.0,0.22232747]
[1760088277234,0.001,121770.0,121760.0,0.30544953]
[1760088277442,0.02052,121770.0,121760.0,0.30544953]
[1760088277650,0.001,121770.0,121760.0,0.35621581]
[1760088277869,0.23136,121770.0,121760.0,0.35621581]
[1760088278065,0.23136,121770.0,121760.0,0.38090031]
[1760088278361,0.23036,121770.0,121760.0,0.38090031]
[1760088278536,0.67250315,121800.0,121770.0,0.17245626]
[1760088278827,0.25510309,121800.0,121790.0,0.16421709]
[1760088279039,5.37419503,121810.0,121800.0,0.16420361]
[1760088279247,5.64310594,121810.0,121800.0,0.02909]
[1760088279452,6.21546594,121810.0,121800.0,0.05589]
[1760088279662,6.21546594,121810.0,121800.0,0.22009361]
[1760088279865,6.14927091,121810.0,121800.0,0.22009361]
[1760088280718,6.14127091,121810.0,121800.0,0.22009361]
[1760088280930,5.90891091,121810.0,121800.0,0.22009361]
[1760088281145,6.1298682,121810.0,121800.0,0.21909361]
[1760088282445,6.12318088,121810.0,121800.0,0.21909361]
[1760088286711,5.31891075,121810.0,121800.0,0.21909361]
[1760088286922,5.48310088,121810.0,121800.0,0.21909361]
[1760088287134,5.48412489,121810.0,121800.0,0.21909361]